bitfinex/quotes_SOLUSD_20250814
["timestamp","ask_amount","ask_price","bid_price","bid_amount"]
[1755173281235,0.06,203.88,203.87,0.66]
[1755173281919,0.06,203.88,203.87,5.56508657]
[1755173282120,0.06,203.88,203.87,20.67130214]
[1755173283043,0.06,203.88,203.87,5.56508657]
[1755173283434,0.7,203.97,203.89,26.0]
[1755173283638,0.7,203.97,203.89,61.98]
[1755173284155,0.7,203.97,203.89,66.88460542]
[1755173284363,0.7,203.94,203.89,66.22460542]
[1755173286940,0.7,203.97,203.89,67.37506596]
[1755173287547,0.7,203.96,203.89,67.37506596]
[1755173287751,0.7,203.96,203.89,66.88460542]
[1755173288330,0.49065305,204.01,203.89,94.74279509]
[1755173288331,0.7,204.01,203.89,94.74279509]
[1755173288660,0.7,204.01,203.93,26.0]
[1755173288835,0.7,204.01,203.97,26.0]
[1755173289038,0.7,204.01,203.98,35.3]
[1755173289444,10.52916192,204.01,203.98,35.3]
[1755173289652,9.82916192,204.01,203.98,35.3]
[1755173289853,0.7,204.0,203.98,35.3]
[1755173294945,0.7,203.99,203.98,35.3]
[1755173295139,79.6,204.01,203.98,35.3]
[1755173295649,0.7,204.0,203.93,26.0]
[1755173295972,0.7,204.0,203.94,35.28]
[1755173295973,9.82916192,203.99,203.94,35.28]
[1755173296150,0.7,203.98,203.94,35.28]
[1755173296352,9.82916192,204.0,203.94,35.28]
[1755173296573,0.7,203.97,203.94,35.28]
[1755173296745,0.7,203.96,203.94,35.28]
[1755173297358,0.7,203.99,203.94,35.28]
[1755173297564,0.7,203.98,203.94,35.28]
[1755173297947,0.7,203.97,203.94,35.28]
[1755173298159,15.16621557,204.04,203.94,35.28]
[1755173298160,0.7,203.96,203.94,35.28]
[1755173298355,9.82916192,203.98,203.94,35.28]
[1755173298573,0.7,203.95,203.94,35.28]
[1755173298868,0.7,203.95,203.94,35.26]
[1755173300977,105.6,204.03,203.94,35.26]
[1755173300978,9.82916192,203.99,203.94,35.26]
[1755173301153,0.7,203.99,203.94,35.92]
[1755173301747,0.7,203.98,203.94,35.26]
[1755173301951,9.82916192,203.98,203.95,35.26]
[1755173302164,0.7,203.98,203.95,35.26]
[1755173302657,0.7,203.97,203.95,35.26]
[1755173302873,0.7,203.96,203.95,35.26]
[1755173303384,0.7,204.0,203.95,35.26]
[1755173303584,0.49065305,204.02,203.95,35.26]
[1755173303748,0.49065305,204.02,203.95,35.92]
[1755173303749,0.7,204.02,203.95,35.92]
[1755173303950,0.7,204.02,203.95,40.82314133]
[1755173304449,80.3,204.02,203.98,26.0]
[1755173304673,79.6,204.02,203.99,35.28]
[1755173306051,80.3,204.02,203.99,35.28]
[1755173306770,0.7,204.01,203.99,35.28]
[1755173307282,79.6,204.02,203.99,35.28]
[1755173307779,79.6,204.02,204.0,35.24]
[1755173307780,80.3,204.02,204.0,35.24]
[1755173308150,0.7,204.01,203.96,0.66]
[1755173308379,0.7,204.01,203.97,35.24]
[1755173308674,79.6,204.02,203.97,35.9]
[1755173308974,0.7,204.01,203.98,35.24]
[1755173309282,10.52916192,204.01,203.98,35.24]
[1755173309489,0.7,204.0,203.98,35.24]
[1755173314559,80.09065305,204.02,203.98,35.24]
[1755173314887,80.75065305,204.02,203.98,35.24]
[1755173315070,80.09065305,204.02,203.98,35.24]
[1755173315274,0.66,204.01,203.98,35.24]
[1755173318383,79.6,204.02,203.99,0.71]
[1755173318888,79.6,204.02,204.0,0.71]
[1755173319072,79.6,204.02,204.01,35.24]
[1755173320680,0.06,204.04,204.01,35.95]
[1755173320875,0.06,204.04,204.02,0.71]
[1755173321612,0.06,204.04,204.03,0.71]
[1755173321774,0.06,204.04,204.03,26.71]
[1755173322477,0.06,204.04,204.03,31.61124001]
[1755173324390,0.06,204.04,204.03,26.71]
[1755173325360,0.06,204.04,204.03,31.61124001]
[1755173328798,0.06,204.04,204.03,66.83124001]
[1755173331542,0.72,204.04,204.0,0.49019607]
[1755173331830,0.06,204.04,204.01,35.22]
[1755173332124,0.06,204.04,204.02,0.71]
[1755173332321,0.06,204.04,204.03,61.93]
[1755173333822,0.06,204.04,204.03,61.22]
[1755173334025,0.06,204.04,204.03,61.93]
[1755173334395,0.72,204.04,203.99,0.4902201]
[1755173334599,0.72,204.04,203.94,0.71]
[1755173334600,10.54916192,204.04,203.95,6.86014262]
[1755173334811,0.66,204.03,203.99,26.0]
[1755173335013,0.66,204.03,204.0,35.22]
[1755173335014,10.97981497,204.03,204.0,35.22]
[1755173335305,10.48916192,204.02,204.0,35.22]
[1755173335506,0.66,204.01,204.0,35.22]
[1755173335821,26.08603054,204.01,204.0,35.22]
[1755173336022,25.42603054,204.01,203.9,5.64419481]
[1755173336320,10.48916192,204.0,203.94,26.0]
[1755173336509,9.82916192,203.98,203.9,0.03]
[1755173336717,0.66,203.97,203.91,35.24]
[1755173337028,10.97981497,203.97,203.91,35.24]
[1755173337323,10.48916192,203.96,203.91,35.24]
[1755173337533,15.10621557,204.01,203.94,26.0]
[1755173337534,0.66,203.98,203.94,26.0]
[1755173337735,0.49065305,204.0,203.95,35.24]
[1755173337927,0.66,203.97,203.95,35.24]
[1755173339516,0.66,204.01,203.95,35.95]
[1755173340038,0.66,204.01,203.95,35.24]
[1755173340202,10.48916192,204.01,203.95,35.24]
[1755173340404,10.97981497,204.0,203.95,35.24]
[1755173340603,0.66,203.99,203.95,35.24]
[1755173340808,0.66,204.01,203.95,35.94]
[1755173341021,1.15065305,204.03,203.96,0.7]
[1755173341640,0.49065305,204.03,203.96,0.7]
[1755173341827,0.66,204.02,203.96,5.60275445]
[1755173342026,15.16621557,204.04,203.99,26.0]
[1755173342027,0.06,204.04,203.99,26.0]
[1755173342216,0.06,204.04,204.0,35.22]
[1755173342412,79.66,204.04,204.0,35.22]
[1755173342940,79.66,204.04,204.01,0.7]
[1755173343508,0.06,204.04,204.01,0.7]
[1755173343906,0.06,204.04,204.02,4.90148024]
[1755173344134,0.06,204.04,204.03,35.22]
[1755173348134,0.06,204.04,204.03,40.12124001]
[1755173348333,0.06,204.04,204.03,40.82124001]
[1755173348543,0.06,204.04,204.03,40.12124001]
[1755173349043,0.06,204.04,204.03,35.22]
[1755173349229,0.72,204.04,203.96,0.7]
[1755173349432,9.82916192,204.01,203.97,35.22]
[1755173349647,9.82916192,203.99,203.98,35.22]
[1755173349948,0.66,203.99,203.98,35.22]
[1755173353533,10.97981497,203.99,203.98,35.22]
[1755173355024,0.66,204.02,203.98,35.22]
[1755173355239,10.31981497,204.01,203.98,35.22]
[1755173355437,0.66,204.0,203.98,35.22]
[1755173355633,10.48916192,204.0,203.98,35.22]
[1755173355850,0.66,203.99,203.98,35.22]
[1755173356233,1.15065305,203.99,203.94,26.0]
[1755173356433,0.66,203.98,203.95,35.22]
[1755173356628,0.66,203.97,203.95,35.22]
[1755173357134,1.15065305,203.99,203.95,35.22]
[1755173357339,90.08916192,203.98,203.95,35.22]
[1755173357533,1.15065305,203.97,203.95,35.22]
[1755173358249,0.66,203.97,203.95,35.22]
[1755173358446,16.25686862,203.96,203.95,35.22]
[1755173358647,15.10621557,203.95,203.9,0.03]
[1755173358837,1.15065305,203.94,203.91,35.22]
[1755173359551,1.15065305,203.97,203.91,35.92]
[1755173360361,0.66,203.96,203.91,35.22]
[1755173360555,0.66,203.95,203.91,35.22]
[1755173362754,79.6,203.98,203.94,26.0]
[1755173362934,79.6,203.98,203.95,35.94]
[1755173363135,0.55065305,204.0,203.95,35.94]
[1755173363136,1.21065305,204.0,203.95,35.24]
[1755173363759,1.21065305,204.0,203.95,35.94]
[1755173365262,0.66,203.99,203.95,35.94]
[1755173365443,0.66,203.99,203.95,35.24]
[1755173368137,0.55065305,204.0,203.95,35.24]
[1755173368332,0.66,203.98,203.95,35.24]
[1755173368538,79.6,203.99,203.95,35.24]
[1755173368739,80.26,203.99,203.95,35.24]
[1755173370060,80.26,203.99,203.95,35.94]
[1755173371536,79.6,203.99,203.95,35.24]
[1755173371738,79.6,203.99,203.96,0.69]
[1755173372249,0.71,203.98,203.95,35.24]
[1755173372839,0.71,203.97,203.95,35.24]
[1755173373248,80.09065305,203.99,203.95,35.24]
[1755173373540,80.80065305,203.99,203.95,35.24]
[1755173374063,0.71,203.98,203.95,35.24]
[1755173374569,80.31,203.98,203.95,35.24]
[1755173375065,79.6,203.98,203.95,35.93]
[1755173376445,79.6,203.98,203.96,0.69]
[1755173376759,79.6,203.98,203.95,35.93]
[1755173378946,79.6,203.98,203.96,0.69]
[1755173379142,79.6,203.98,203.97,35.22]
[1755173379637,79.6,203.98,203.97,35.91]
[1755173380054,79.6,203.98,203.97,35.22]
[1755173385660,0.06,203.99,203.97,40.81268176]
[1755173385984,0.06,203.99,203.98,0.69]
[1755173387562,0.06,203.99,203.98,5.59244141]
[1755173389565,0.06,203.99,203.98,0.69]
[1755173389765,0.06,203.99,203.98,35.22]
[1755173392261,0.06,203.99,203.98,35.91]
[1755173393183,0.06,203.99,203.98,40.81244141]
[1755173395490,0.06,203.99,203.98,40.79244141]
[1755173396061,0.06,203.99,203.98,66.79244141]
[1755173396588,0.06,203.99,203.98,61.2]
[1755173397971,0.06,203.99,203.98,61.89]
[1755173398498,0.06,203.99,203.98,61.2]
[1755173398697,0.06,203.99,203.98,61.89]
[1755173398986,0.06,203.99,203.98,40.79244141]
[1755173400091,0.06,203.99,203.98,41.28268555]
[1755173400291,0.06,203.99,203.98,40.79244141]
[1755173400676,0.06,203.99,203.98,31.59244141]
[1755173400992,0.06,203.99,203.98,40.78244141]
[1755173401991,0.06,203.99,203.98,35.2]
[1755173402314,0.05365875,204.0,203.98,40.10244141]
[1755173405405,0.05365875,204.0,203.98,35.2]
[1755173405598,0.75365875,204.0,203.98,35.2]
[1755173405980,0.75365875,204.0,203.99,35.2]
[1755173406711,0.05365875,204.0,203.99,35.2]
[1755173407082,0.05365875,204.0,203.99,35.88]
[1755173407284,0.05365875,204.0,203.99,40.78220108]
[1755173409577,0.05365875,204.0,203.99,35.2]
[1755173409785,0.75365875,204.0,203.96,0.68]
[1755173409998,0.75365875,204.0,203.99,26.0]
[1755173410205,0.75365875,204.0,203.99,61.18]
[1755173412302,0.05365875,204.0,203.99,66.08220108]
[1755173412501,0.75365875,204.0,203.99,35.18]
[1755173417101,10.58282067,204.0,203.99,35.18]
[1755173417712,0.75365875,204.0,203.99,35.18]
[1755173420217,0.05365875,204.0,203.99,35.18]
[1755173422507,0.75365875,204.0,203.99,35.18]
[1755173423330,10.58282067,204.0,203.99,35.18]
[1755173424307,79.6,203.99,203.95,26.03]
[1755173424510,0.7,203.98,203.96,35.18]
[1755173424837,79.6,203.97,203.96,35.18]
[1755173425125,80.3,203.97,203.96,35.18]
[1755173425700,79.6,203.97,203.96,35.18]
[1755173426032,80.3,203.97,203.96,35.18]
[1755173426329,0.49065305,203.98,203.96,40.76268941]
[1755173426498,0.05365875,204.0,203.99,26.0]
[1755173426827,0.05365875,204.0,203.99,61.86]
[1755173427200,0.05365875,204.0,203.99,66.76220108]
[1755173427701,0.06,204.04,203.99,82.35863675]
[1755173427900,0.06,204.04,204.0,0.68]
[1755173429219,0.06,204.04,204.01,61.18]
[1755173431832,0.06,204.04,204.01,61.87]
[1755173432430,0.06,204.04,204.01,66.7717205]
[1755173432833,0.06,204.04,204.0,4.90192973]
[1755173433035,0.06,204.04,204.01,35.85]
[1755173433414,0.06,204.04,204.01,40.7517205]
[1755173433810,0.06,204.04,204.01,40.0617205]
[1755173434013,0.06,204.04,204.01,35.16]
[1755173434418,0.73,204.04,204.01,35.16]
[1755173436417,0.73,204.02,204.01,35.16]
[1755173442042,0.73,204.02,203.99,0.03]
[1755173442222,24.93537749,204.0,203.99,0.03]
[1755173442422,0.67,204.0,203.99,0.03]
[1755173442744,0.73,204.02,203.99,0.03]
[1755173443116,0.67,204.01,203.99,0.03]
[1755173443738,0.67,204.01,204.0,35.16]
[1755173443933,0.06,204.02,204.0,35.16]
[1755173444243,0.67,204.01,204.0,35.16]
[1755173445622,25.60537749,204.01,204.0,35.16]
[1755173445822,25.60537749,204.01,203.99,0.03]
[1755173446018,0.67,204.0,203.99,0.03]
[1755173448220,25.60537749,204.0,203.99,0.03]
[1755173448928,15.77621557,204.0,203.99,0.03]
[1755173449333,25.60537749,204.0,203.99,0.03]
[1755173460048,60.76537749,204.0,203.99,0.03]
[1755173460253,85.49650019,204.0,203.99,0.03]
[1755173460757,80.59453941,204.0,203.99,0.03]
[1755173461160,70.76537749,204.0,203.99,0.03]
[1755173461364,15.10621557,203.97,203.96,0.03]
[1755173461578,60.74537749,203.97,203.96,0.03]
[1755173461759,25.58537749,203.97,203.96,0.03]
[1755173462282,60.74537749,203.97,203.96,0.03]
[1755173463356,65.64805925,203.97,203.96,0.03]
[1755173463657,62.70486449,203.97,203.96,0.03]
[1755173464074,27.54486449,203.97,203.96,0.03]
[1755173464279,65.64805925,203.97,203.96,0.03]
[1755173464479,0.14216157,203.96,203.95,0.03]
[1755173464680,0.14216157,203.96,203.92,0.03]
[1755173464681,41.10621557,203.93,203.92,0.03]
[1755173464985,41.10621557,203.93,203.87,0.03]
[1755173464986,41.10621557,203.91,203.87,0.03]
[1755173465165,86.09537749,203.91,203.87,0.03]
[1755173465363,86.74537749,203.91,203.87,0.03]
[1755173465565,91.64950185,203.91,203.87,0.03]
[1755173465770,86.74537749,203.91,203.87,0.03]
[1755173467786,15.10621557,203.91,203.88,0.69]
[1755173468083,15.10621557,203.91,203.87,0.03]
[1755173468084,15.10621557,203.91,203.9,0.72]
[1755173468266,15.10621557,203.91,203.9,0.03]
[1755173468478,25.58537749,203.91,203.9,0.03]
[1755173469403,15.10621557,203.91,203.9,0.72]
[1755173469690,15.10621557,203.91,203.9,0.03]
[1755173469907,15.10621557,203.91,203.9,0.72]
[1755173470067,15.10621557,203.91,203.9,0.03]
[1755173470570,15.10621557,203.91,203.9,0.72]
[1755173470792,132.5,203.92,203.9,0.72]
[1755173471091,15.10621557,203.91,203.9,0.03]
[1755173471478,15.10621557,203.91,203.9,0.72]
[1755173472105,15.10621557,203.91,203.9,0.03]
[1755173486815,132.5,203.92,203.9,0.72]
[1755173487015,0.06,203.97,203.9,0.72]
[1755173488125,0.06,203.97,203.91,4.90412436]
[1755173488322,0.06,203.97,203.92,0.69]
[1755173489126,0.06,203.97,203.92,5.59367645]
[1755173489500,0.06,203.97,203.93,0.69]
[1755173491317,0.06,203.97,203.93,31.593524]
[1755173491700,0.06,203.97,203.94,0.68]
[1755173491916,0.06,203.97,203.94,35.82]
[1755173492201,0.06,203.97,203.95,0.68]
[1755173492718,0.06,203.97,203.96,0.68]
[1755173493097,0.06,203.97,203.96,26.68]
[1755173494908,0.06,203.97,203.94,35.14]
[1755173495126,0.06,203.97,203.95,35.14]
[1755173496803,0.74,203.97,203.95,35.14]
[1755173497004,0.68,203.96,203.95,35.14]
[1755173497611,0.06,203.97,203.95,35.14]
[1755173497826,0.74,203.97,203.95,35.14]
[1755173498039,0.06,203.97,203.95,35.14]
[1755173499329,0.06,203.97,203.95,35.82]
[1755173499537,0.06,203.97,203.95,35.14]
[1755173500240,0.68,203.96,203.95,35.14]
[1755173500816,25.61537749,203.96,203.95,35.14]
[1755173501627,15.10621557,203.95,203.9,0.03]
[1755173501949,15.10621557,203.93,203.91,35.12]
[1755173502121,79.6,203.92,203.91,35.12]
[1755173503031,79.6,203.92,203.91,35.8]
[1755173503230,79.6,203.92,203.91,35.12]
[1755173504333,80.28,203.92,203.91,35.12]
[1755173505113,95.38621557,203.92,203.91,35.12]
[1755173505303,105.21537749,203.92,203.91,35.12]
[1755173505507,15.10621557,203.91,203.9,0.03]
[1755173505752,15.78621557,203.91,203.9,0.03]
[1755173507232,15.10621557,203.91,203.9,0.03]
[1755173507904,79.6,203.92,203.9,0.03]
[1755173508735,0.68,203.91,203.9,0.03]
[1755173508939,15.78621557,203.91,203.9,0.03]
[1755173509342,15.10621557,203.91,203.9,0.03]
[1755173509723,15.78621557,203.91,203.9,0.03]
[1755173512435,15.10621557,203.91,203.9,0.03]
[1755173513858,132.5,203.95,203.9,0.71]
[1755173514017,132.5,203.95,203.91,0.68]
[1755173514225,15.16621557,203.97,203.92,35.8]
[1755173514418,15.16621557,203.97,203.93,0.68]
[1755173515778,0.06,203.97,203.94,0.68]
[1755173515931,0.06,203.97,203.95,0.68]
[1755173516131,0.06,203.97,203.93,5.58361874]
[1755173516433,0.06,203.97,203.94,0.68]
[1755173516819,0.06,203.97,203.93,4.90361874]
[1755173517019,0.06,203.97,203.95,0.68]
[1755173517222,0.06,203.97,203.96,0.68]
[1755173518741,0.06,203.97,203.93,5.58361874]
[1755173519232,0.06,203.97,203.94,0.68]
[1755173519934,0.06,203.97,203.95,0.68]
[1755173520143,0.06,203.97,203.96,26.0]
[1755173520329,0.06,203.97,203.96,26.68]
[1755173520741,0.06,203.97,203.96,31.58292214]
[1755173520948,0.06,203.99,203.96,66.68292214]
[1755173521233,0.06,204.0,203.97,1.16026817]
[1755173521540,0.06,204.0,203.98,0.67]
[1755173522159,0.06,204.0,203.97,0.49026817]
[1755173522359,15.10621557,203.94,203.9,0.03]
[1755173522559,15.10621557,203.94,203.87,0.03]
[1755173522560,15.10621557,203.9,203.87,0.03]
[1755173522743,24.93537749,203.87,203.85,0.03]
[1755173522940,25.65537749,203.87,203.85,0.03]
[1755173524846,15.82621557,203.87,203.85,0.03]
[1755173525046,10.0,203.96,203.85,0.03]
[1755173525047,15.10621557,203.9,203.85,0.03]
[1755173525366,15.10621557,203.88,203.85,0.03]
[1755173525531,15.10621557,203.9,203.85,0.03]
[1755173525737,15.82621557,203.9,203.85,0.03]
[1755173526662,15.10621557,203.92,203.85,0.03]
[1755173526841,15.10621557,203.9,203.85,0.03]
[1755173527035,0.72,203.89,203.85,0.03]
[1755173527241,15.10621557,203.9,203.85,0.03]
[1755173527454,15.82621557,203.97,203.87,0.67]
[1755173527637,15.82621557,203.97,203.88,35.1]
[1755173527843,15.10621557,203.95,203.88,35.1]
[1755173528471,0.72,203.96,203.88,40.00480188]
[1755173528768,15.10621557,203.95,203.88,35.1]
[1755173529653,15.10621557,203.95,203.88,35.77]
[1755173530165,15.10621557,203.95,203.88,40.67478028]
[1755173530564,15.10621557,203.93,203.88,35.1]
[1755173530759,15.82621557,203.93,203.88,35.1]
[1755173531351,0.72,203.92,203.88,35.1]
[1755173531561,15.10621557,203.93,203.88,35.1]
[1755173531868,0.72,203.92,203.88,35.1]
[1755173533074,15.10621557,203.94,203.88,35.1]
[1755173533649,94.70621557,203.94,203.88,35.1]
[1755173534567,79.6,203.94,203.89,0.67]
[1755173534775,15.10621557,203.96,203.9,0.67]
[1755173534997,79.6,203.99,203.91,26.0]
[1755173535269,15.10621557,203.99,203.92,26.67]
[1755173535442,15.10621557,203.99,203.93,35.14]
[1755173536675,15.10621557,203.96,203.87,0.67]
[1755173536881,15.10621557,203.96,203.91,35.14]
[1755173537049,0.72,203.95,203.91,35.14]
[1755173537249,0.72,203.94,203.91,35.14]
[1755173537775,15.10621557,203.96,203.91,35.14]
[1755173537983,0.72,203.96,203.91,35.14]
[1755173539173,0.72,203.95,203.91,35.14]
[1755173540280,15.10621557,203.97,203.91,35.14]
[1755173540281,0.72,203.94,203.91,35.14]
[1755173540453,15.10621557,203.95,203.91,35.14]
[1755173540653,15.82621557,203.95,203.91,35.14]
[1755173540978,15.82621557,203.97,203.91,35.14]
[1755173541665,95.42621557,203.97,203.91,35.14]
[1755173542054,0.06,204.0,203.92,0.67]
[1755173542253,15.16621557,204.0,203.92,0.67]
[1755173543561,15.16621557,204.0,203.92,5.57371121]
[1755173543869,15.16621557,204.0,203.93,0.67]
[1755173544764,15.16621557,204.0,203.94,26.0]
[1755173544959,0.06,204.0,203.94,26.0]
[1755173545186,0.06,204.0,203.94,26.67]
[1755173546455,15.10621557,203.98,203.91,35.81]
[1755173546659,15.10621557,203.98,203.91,61.81]
[1755173547072,15.10621557,203.96,203.91,35.14]
[1755173547273,0.72,203.95,203.91,35.14]
[1755173547982,79.6,203.94,203.91,35.14]
[1755173549465,0.72,203.93,203.91,35.14]
[1755173549678,0.72,203.93,203.86,0.03]
[1755173549679,15.10621557,203.89,203.86,0.03]
[1755173549986,0.72,203.88,203.86,0.03]
[1755173550481,15.82621557,203.87,203.86,0.03]
[1755173552258,25.65537749,203.87,203.86,0.03]
[1755173552875,51.65537749,203.87,203.86,0.03]
[1755173554874,86.79537749,203.87,203.86,0.03]
[1755173555277,94.58621557,203.83,203.82,0.03]
[1755173555588,15.76621557,203.83,203.82,0.03]
[1755173555765,25.59537749,203.83,203.82,0.03]
[1755173557289,158.09537749,203.83,203.82,0.03]
[1755173557691,163.00142664,203.83,203.82,0.03]
[1755173558068,163.00142664,203.83,203.79,0.03]
[1755173558069,15.10621557,203.81,203.79,0.03]
[1755173558278,60.17537749,203.81,203.79,0.03]
[1755173558481,25.59537749,203.81,203.79,0.03]
[1755173558682,60.83537749,203.81,203.79,0.03]
[1755173558872,15.10621557,203.8,203.77,0.03]
[1755173559083,75.94552382,203.81,203.77,0.03]
[1755173559084,30.50238961,203.79,203.77,0.03]
[1755173559273,29.84238961,203.79,203.77,0.03]
[1755173559474,30.50238961,203.79,203.77,0.03]
[1755173560621,30.64455118,203.79,203.77,0.03]
[1755173560896,40.64455118,203.79,203.77,0.03]
[1755173561099,20.15563005,203.78,203.77,0.03]
[1755173561268,65.88479197,203.78,203.74,0.03]
[1755173561474,15.10621557,203.71,203.58,26.0]
[1755173561674,15.10621557,203.69,203.58,26.0]
[1755173562198,15.10621557,203.69,203.58,3.85855998]
[1755173562380,15.10621557,203.69,203.57,2.55485344]
[1755173562586,15.10621557,203.69,203.58,4.91207387]
[1755173562804,15.10621557,203.69,203.59,35.22]
[1755173563578,15.10621557,203.69,203.62,26.0]
[1755173563789,15.10621557,203.69,203.63,0.3]
[1755173563995,79.48,203.68,203.63,0.3]
[1755173564196,79.48,203.68,203.64,0.3]
[1755173564598,79.48,203.68,203.65,0.3]
[1755173565285,79.48,203.68,203.63,0.3]
[1755173565480,79.48,203.68,203.64,0.3]
[1755173566079,79.48,203.68,203.65,0.3]
[1755173566280,79.48,203.68,203.66,0.3]
[1755173567082,79.48,203.68,203.63,0.3]
[1755173567283,79.48,203.68,203.62,26.0]
[1755173567483,79.48,203.68,203.64,0.3]
[1755173567786,79.48,203.68,203.65,0.3]
[1755173568394,79.48,203.68,203.63,0.3]
[1755173568726,79.48,203.68,203.64,0.3]
[1755173569215,79.48,203.68,203.65,0.3]
[1755173569814,0.66,203.72,203.65,0.3]
[1755173570314,15.10621557,203.71,203.65,0.3]
[1755173571632,15.10621557,203.71,203.66,35.14]
[1755173571633,79.48,203.71,203.66,35.14]
[1755173571785,79.48,203.71,203.67,0.3]
[1755173572293,221.80916192,203.84,203.7,26.0]
[1755173572608,15.10621557,203.8,203.71,26.3]
[1755173572782,15.10621557,203.8,203.72,0.3]
[1755173572986,15.10621557,203.8,203.73,35.16]
[1755173573427,0.66,203.8,203.73,35.16]
[1755173574507,0.66,203.8,203.73,40.06827369]
[1755173574811,0.66,203.8,203.73,40.36827369]
[1755173575310,0.66,203.8,203.73,35.46]
[1755173575998,0.66,203.8,203.73,40.36835642]
[1755173576310,80.14,203.84,203.75,4.90797546]
[1755173576495,0.66,203.84,203.77,26.0]
[1755173576912,0.66,203.84,203.77,26.3]
[1755173577115,0.66,203.86,203.76,26.0]
[1755173577336,15.10621557,203.84,203.78,0.3]
[1755173577628,15.10621557,203.84,203.79,35.14]
[1755173577812,15.76621557,203.84,203.79,35.14]
[1755173578007,0.66,203.83,203.79,35.14]
[1755173578730,15.10621557,203.84,203.79,35.14]
[1755173578933,0.06,203.83,203.79,35.14]
[1755173579846,0.06,203.83,203.79,35.44]
[1755173580052,0.06,203.83,203.79,40.3469082]
[1755173580546,0.06,203.83,203.79,40.0469082]
[1755173580842,0.06,203.83,203.8,5.20671729]
[1755173581049,0.06,203.83,203.81,0.3]
[1755173581225,0.06,203.83,203.82,0.3]
[1755173581423,0.06,203.83,203.82,26.3]
[1755173583150,0.06,203.83,203.82,26.0]
[1755173583531,0.06,203.83,203.82,30.90628986]
[1755173584143,0.06,203.83,203.82,26.0]
[1755173587639,0.06,203.83,203.82,61.14]
[1755173589554,0.06,203.83,203.82,61.44]
[1755173589933,0.06,203.83,203.82,66.34628986]
[1755173590141,0.06,203.83,203.82,61.14]
[1755173592725,0.06,203.83,203.82,66.04628986]
[1755173593126,0.06,203.83,203.82,61.14]
[1755173596857,0.76,203.83,203.82,35.14]
[1755173598445,1.06,203.83,203.82,35.14]
[1755173599134,0.06,203.88,203.85,26.0]
[1755173599347,0.06,203.88,203.86,35.12]
[1755173600358,0.06,203.88,203.87,0.3]
[1755173600737,0.06,203.88,203.87,31.20508657]
[1755173600938,0.06,203.88,203.87,5.20508657]
[1755173601962,0.06,203.88,203.87,5.69559522]
[1755173602336,0.06,203.88,203.87,5.20508657]
[1755173604537,0.06,203.88,203.87,5.69559522]